[Event "Titled Tuesday Blitz July 25 Late 2023"]
[White "Nunez V, Gustavo Eduardo"]
[Black "Korchmar, Vasiliy"]
[WhiteFideId "4403690"]
[BlackFideId "24131750"]
[WhiteElo "2432"]
[BlackElo "2675"]
[Result "1-0"]
[Round "11"]
[TimeControl "180+2"]
[Date "2023.07.25"]
[WhiteClock "0:00:05"]
[BlackClock "0:00:00"]
[Board "58"]

1. e4 {[%clk 0:02:57]}  a5 {[%clk 0:02:59]} 2. d4 {[%clk 0:02:57]}  a4 {[%clk 0:02:59]} 3. a3 {[%clk 0:02:56]}  h5 {[%clk 0:02:58]} 4. Nf3 {[%clk 0:02:52]}  h4 {[%clk 0:02:56]} 5. h3 {[%clk 0:02:52]}  g6 {[%clk 0:02:55]} 6. Bc4 {[%clk 0:02:52]}  Bg7 {[%clk 0:02:54]} 7. Bg5 {[%clk 0:02:46]}  c5 {[%clk 0:02:38]} 8. c3 {[%clk 0:02:39]}  cxd4 {[%clk 0:02:29]} 9. cxd4 {[%clk 0:02:40]}  Qb6 {[%clk 0:02:28]} 10. Qd2 {[%clk 0:02:32]}  Nc6 {[%clk 0:02:27]} 11. Be3 {[%clk 0:02:28]}  Na5 {[%clk 0:02:16]} 12. Ba2 {[%clk 0:02:12]}  Nf6 {[%clk 0:02:16]} 13. Nc3 {[%clk 0:02:10]}  Nb3 {[%clk 0:02:06]} 14. Bxb3 {[%clk 0:02:07]}  Qxb3 {[%clk 0:02:07]} 15. Rc1 {[%clk 0:01:58]}  d6 {[%clk 0:02:04]} 16. Qc2 {[%clk 0:01:51]}  Qxc2 {[%clk 0:01:54]} 17. Rxc2 {[%clk 0:01:52]}  Be6 {[%clk 0:01:48]} 18. d5 {[%clk 0:01:46]}  Bd7 {[%clk 0:01:47]} 19. Bd4 {[%clk 0:01:45]}  Rc8 {[%clk 0:01:41]} 20. O-O {[%clk 0:01:41]}  O-O {[%clk 0:01:35]} 21. Rd2 {[%clk 0:01:21]}  Rc4 {[%clk 0:01:28]} 22. Re1 {[%clk 0:01:13]}  b5 {[%clk 0:01:03]} 23. e5 {[%clk 0:01:03]}  Nh5 {[%clk 0:00:52]} 24. e6 {[%clk 0:00:55]}  fxe6 {[%clk 0:00:51]} 25. dxe6 {[%clk 0:00:52]}  Bc6 {[%clk 0:00:50]} 26. Bxg7 {[%clk 0:00:50]}  Kxg7 {[%clk 0:00:51]} 27. Nd4 {[%clk 0:00:42]}  Ba8 {[%clk 0:00:51]} 28. Ncxb5 {[%clk 0:00:32]}  Nf4 {[%clk 0:00:51]} 29. f3 {[%clk 0:00:30]}  Rc5 {[%clk 0:00:50]} 30. Nc3 {[%clk 0:00:28]}  Rg5 {[%clk 0:00:51]} 31. Kh2 {[%clk 0:00:25]}  Bd5 {[%clk 0:00:24]} 32. Nxa4 {[%clk 0:00:23]}  Re5 {[%clk 0:00:17]} 33. Rxe5 {[%clk 0:00:20]}  dxe5 {[%clk 0:00:18]} 34. Nb5 {[%clk 0:00:18]}  e4 {[%clk 0:00:11]} 35. Nac3 {[%clk 0:00:17]}  e3 {[%clk 0:00:07]} 36. Rd1 {[%clk 0:00:17]}  Bc4 {[%clk 0:00:07]} 37. Nd4 {[%clk 0:00:13]}  Rb8 {[%clk 0:00:05]} 38. b4 {[%clk 0:00:12]}  Nd3 {[%clk 0:00:04]} 39. Ne4 {[%clk 0:00:11]}  Nf2 {[%clk 0:00:03]} 40. Re1 {[%clk 0:00:11]}  Nxe4 {[%clk 0:00:02]} 41. fxe4 {[%clk 0:00:10]}  e2 {[%clk 0:00:03]} 42. Nxe2 {[%clk 0:00:10]}  Ra8 {[%clk 0:00:03]} 43. Nf4 {[%clk 0:00:09]}  Rxa3 {[%clk 0:00:02]} 44. Rc1 {[%clk 0:00:10]}  Bb5 {[%clk 0:00:02]} 45. Rc5 {[%clk 0:00:09]}  Bf1 {[%clk 0:00:01]} 46. Rg5 {[%clk 0:00:10]}  Ra2 {[%clk 0:00:01]} 47. Rxg6+ {[%clk 0:00:10]}  Kh7 {[%clk 0:00:02]} 48. Rg4 {[%clk 0:00:10]}  Rf2 {[%clk 0:00:02]} 49. Rxh4+ {[%clk 0:00:11]}  Kg7 {[%clk 0:00:03]} 50. Rg4+ {[%clk 0:00:11]}  Kf6 {[%clk 0:00:03]} 51. Nd5+ {[%clk 0:00:11]}  Ke5 {[%clk 0:00:03]} 52. Ne3 {[%clk 0:00:12]}  Be2 {[%clk 0:00:02]} 53. Rg3 {[%clk 0:00:10]}  Kxe4 {[%clk 0:00:02]} 54. Ng4 {[%clk 0:00:11]}  Bxg4 {[%clk 0:00:02]} 55. Rxg4+ {[%clk 0:00:12]}  Ke3 {[%clk 0:00:03]} 56. b5 {[%clk 0:00:12]}  Rb2 {[%clk 0:00:02]} 57. Rg5 {[%clk 0:00:12]}  Kf4 {[%clk 0:00:02]} 58. Rc5 {[%clk 0:00:13]}  Re2 {[%clk 0:00:02]} 59. Rc7 {[%clk 0:00:11]}  Rxe6 {[%clk 0:00:02]} 60. Rc6 {[%clk 0:00:11]}  Re5 {[%clk 0:00:01]} 61. b6 {[%clk 0:00:12]}  Rb5 {[%clk 0:00:02]} 62. Re6 {[%clk 0:00:12]}  Kf5 {[%clk 0:00:01]} 63. Rxe7 {[%clk 0:00:12]}  Rxb6 {[%clk 0:00:02]} 64. Rg7 {[%clk 0:00:13]}  Kf6 {[%clk 0:00:02]} 65. Rg3 {[%clk 0:00:13]}  Rb4 {[%clk 0:00:03]} 66. Rg8 {[%clk 0:00:11]}  Ra4 {[%clk 0:00:03]} 67. Kg3 {[%clk 0:00:11]}  Kf7 {[%clk 0:00:03]} 68. Rg4 {[%clk 0:00:11]}  Ra3+ {[%clk 0:00:04]} 69. Kh4 {[%clk 0:00:12]}  Ra2 {[%clk 0:00:04]} 70. g3 {[%clk 0:00:12]}  Ra5 {[%clk 0:00:05]} 71. Rg5 {[%clk 0:00:12]}  Ra4+ {[%clk 0:00:05]} 72. Kh5 {[%clk 0:00:12]}  Ra3 {[%clk 0:00:05]} 73. h4 {[%clk 0:00:11]}  Kf6 {[%clk 0:00:05]} 74. Rg6+ {[%clk 0:00:11]}  Kf7 {[%clk 0:00:06]} 75. g4 {[%clk 0:00:11]}  Rh3 {[%clk 0:00:06]} 76. Rg5 {[%clk 0:00:10]}  Kf6 {[%clk 0:00:06]} 77. Rf5+ {[%clk 0:00:10]}  Kg7 {[%clk 0:00:06]} 78. Kg5 {[%clk 0:00:11]}  Ra3 {[%clk 0:00:06]} 79. Rb5 {[%clk 0:00:11]}  Ra7 {[%clk 0:00:06]} 80. h5 {[%clk 0:00:11]}  Kh7 {[%clk 0:00:06]} 81. h6 {[%clk 0:00:10]}  Rd7 {[%clk 0:00:06]} 82. Kh5 {[%clk 0:00:10]}  Rc7 {[%clk 0:00:05]} 83. g5 {[%clk 0:00:10]}  Rc8 {[%clk 0:00:05]} 84. Rb7+ {[%clk 0:00:09]}  Kh8 {[%clk 0:00:06]} 85. Rb5 {[%clk 0:00:09]}  Rd8 {[%clk 0:00:05]} 86. g6 {[%clk 0:00:08]}  Rc8 {[%clk 0:00:03]} 87. Kg5 {[%clk 0:00:08]}  Rd8 {[%clk 0:00:03]} 88. Re5 {[%clk 0:00:09]}  Ra8 {[%clk 0:00:03]} 89. Kf6 {[%clk 0:00:09]}  Ra6+ {[%clk 0:00:04]} 90. Re6 {[%clk 0:00:10]}  Ra8 {[%clk 0:00:04]} 91. Kf7 {[%clk 0:00:06]}  Rf8+ {[%clk 0:00:04]} 92. Ke7 {[%clk 0:00:05]}  Rg8 {[%clk 0:00:04]} 93. Kf6 {[%clk 0:00:03]}  Rf8+ {[%clk 0:00:03]} 94. Kg5 {[%clk 0:00:03]}  Ra8 {[%clk 0:00:04]} 95. g7+ {[%clk 0:00:01]}  Kh7 {[%clk 0:00:03]} 96. Rf6 {[%clk 0:00:02]}  Ra5+ {[%clk 0:00:03]} 97. Rf5 {[%clk 0:00:02]}  Ra8 {[%clk 0:00:03]} 98. Rf8 {[%clk 0:00:03]}  Ra5+ {[%clk 0:00:03]} 99. Kf4 {[%clk 0:00:03]}  Ra4+ {[%clk 0:00:04]} 100. Ke3 {[%clk 0:00:03]}  Rg4 {[%clk 0:00:04]} 101. Rh8+ {[%clk 0:00:03]}  Kg6 {[%clk 0:00:04]} 102. g8=Q+ {[%clk 0:00:04]}  Kh5 {[%clk 0:00:04]} 103. Qxg4+ {[%clk 0:00:04]}  Kxg4 {[%clk 0:00:00]} 104. Rg8+ {[%clk 0:00:05]} 1-0


[Site "https://www.chess.com"]

[Event "Titled Tuesday Blitz July 25 Late 2023"]
[White "Pinheiro, Iung Alicio de O."]
[Black "EsmeraldasAnderson03"]
[WhiteFideId "2104350"]
[WhiteElo "2589"]
[BlackElo "2429"]
[Result "1-0"]
[Round "11"]
[TimeControl "180+2"]
[Date "2023.07.25"]
[WhiteClock "0:00:34"]
[BlackClock "0:00:43"]
[Board "59"]

1. e4 {[%clk 0:03:00]}  c5 {[%clk 0:02:39]} 2. Nf3 {[%clk 0:03:00]}  d6 {[%clk 0:02:39]} 3. c3 {[%clk 0:02:46]}  Nf6 {[%clk 0:02:38]} 4. h3 {[%clk 0:02:46]}  Nc6 {[%clk 0:02:33]} 5. Bd3 {[%clk 0:02:45]}  g6 {[%clk 0:02:28]} 6. Bc2 {[%clk 0:02:41]}  Bg7 {[%clk 0:02:29]} 7. O-O {[%clk 0:02:40]}  O-O {[%clk 0:02:29]} 8. d4 {[%clk 0:02:41]}  cxd4 {[%clk 0:02:30]} 9. cxd4 {[%clk 0:02:42]}  b6 {[%clk 0:02:30]} 10. Nc3 {[%clk 0:02:41]}  Ba6 {[%clk 0:02:28]} 11. Re1 {[%clk 0:02:41]}  Rc8 {[%clk 0:02:28]} 12. Bg5 {[%clk 0:02:34]}  Nb4 {[%clk 0:02:17]} 13. Bb1 {[%clk 0:02:22]}  h6 {[%clk 0:02:10]} 14. Bf4 {[%clk 0:02:16]}  Nc6 {[%clk 0:01:54]} 15. Qd2 {[%clk 0:02:12]}  Kh7 {[%clk 0:01:54]} 16. Bc2 {[%clk 0:02:03]}  Nb4 {[%clk 0:01:54]} 17. Bb1 {[%clk 0:01:40]}  Nc6 {[%clk 0:01:53]} 18. Be3 {[%clk 0:01:16]}  Qc7 {[%clk 0:01:49]} 19. Bd3 {[%clk 0:01:12]}  Bxd3 {[%clk 0:01:46]} 20. Qxd3 {[%clk 0:01:12]}  Na5 {[%clk 0:01:40]} 21. Rac1 {[%clk 0:01:08]}  Qb7 {[%clk 0:01:40]} 22. b3 {[%clk 0:01:06]}  e6 {[%clk 0:01:36]} 23. Nd2 {[%clk 0:00:52]}  d5 {[%clk 0:01:28]} 24. e5 {[%clk 0:00:52]}  Nd7 {[%clk 0:01:29]} 25. Nb5 {[%clk 0:00:51]}  Rxc1 {[%clk 0:01:23]} 26. Rxc1 {[%clk 0:00:51]}  Rc8 {[%clk 0:01:21]} 27. Rd1 {[%clk 0:00:51]}  Qa6 {[%clk 0:01:16]} 28. Nf3 {[%clk 0:00:51]}  Nb7 {[%clk 0:01:13]} 29. a4 {[%clk 0:00:50]}  Qa5 {[%clk 0:01:08]} 30. Bd2 {[%clk 0:00:49]}  Qa6 {[%clk 0:01:08]} 31. h4 {[%clk 0:00:49]}  h5 {[%clk 0:01:02]} 32. Ng5+ {[%clk 0:00:42]}  Kg8 {[%clk 0:01:01]} 33. Qf3 {[%clk 0:00:42]}  Rf8 {[%clk 0:00:58]} 34. Nc7 {[%clk 0:00:37]}  f6 {[%clk 0:00:43]} 35. Ngxe6 {[%clk 0:00:34]} 1-0


[Site "https://www.chess.com"]

[Event "Titled Tuesday Blitz July 25 Late 2023"]
[White "Toniutti, Ezio"]
[Black "Willy, Stephen"]
[WhiteFideId "113034"]
[BlackFideId "30981468"]
[WhiteElo "2496"]
[BlackElo "2417"]
[Result "1-0"]
[Round "11"]
[TimeControl "180+2"]
[Date "2023.07.25"]
[WhiteClock "0:00:11"]
[BlackClock "0:00:01"]
[Board "61"]

1. d4 {[%clk 0:03:00]}  d5 {[%clk 0:02:56]} 2. c4 {[%clk 0:03:01]}  e6 {[%clk 0:02:55]} 3. Nf3 {[%clk 0:03:01]}  Nf6 {[%clk 0:02:54]} 4. g3 {[%clk 0:03:01]}  dxc4 {[%clk 0:02:52]} 5. Bg2 {[%clk 0:03:02]}  Bb4+ {[%clk 0:02:51]} 6. Bd2 {[%clk 0:03:02]}  c5 {[%clk 0:02:51]} 7. O-O {[%clk 0:03:00]}  O-O {[%clk 0:02:51]} 8. dxc5 {[%clk 0:02:51]}  Bxc5 {[%clk 0:02:49]} 9. Qc2 {[%clk 0:02:51]}  Qc7 {[%clk 0:02:27]} 10. Bf4 {[%clk 0:02:49]}  Qb6 {[%clk 0:02:27]} 11. Nc3 {[%clk 0:02:47]}  Bd7 {[%clk 0:02:25]} 12. Ne5 {[%clk 0:02:46]}  Be8 {[%clk 0:02:24]} 13. Nxc4 {[%clk 0:02:45]}  Qa6 {[%clk 0:02:22]} 14. Ne5 {[%clk 0:02:27]}  Nc6 {[%clk 0:02:19]} 15. Rac1 {[%clk 0:02:26]}  Nd4 {[%clk 0:02:18]} 16. Qb1 {[%clk 0:02:11]}  Bb4 {[%clk 0:02:05]} 17. Kh1 {[%clk 0:01:42]}  Bxc3 {[%clk 0:02:04]} 18. bxc3 {[%clk 0:01:37]}  Nxe2 {[%clk 0:02:02]} 19. Bxb7 {[%clk 0:01:34]}  Qa4 {[%clk 0:01:38]} 20. Bxa8 {[%clk 0:01:29]}  Nxf4 {[%clk 0:00:51]} 21. gxf4 {[%clk 0:00:50]}  Qxf4 {[%clk 0:00:52]} 22. Rce1 {[%clk 0:00:46]}  Ba4 {[%clk 0:00:27]} 23. Bg2 {[%clk 0:00:41]}  a5 {[%clk 0:00:20]} 24. Qc1 {[%clk 0:00:40]}  Qf5 {[%clk 0:00:19]} 25. Qe3 {[%clk 0:00:37]}  h6 {[%clk 0:00:16]} 26. Qd3 {[%clk 0:00:32]}  Qf4 {[%clk 0:00:13]} 27. Qg3 {[%clk 0:00:30]}  Qd2 {[%clk 0:00:11]} 28. f4 {[%clk 0:00:29]}  Rc8 {[%clk 0:00:09]} 29. c4 {[%clk 0:00:24]}  Rb8 {[%clk 0:00:08]} 30. Qe3 {[%clk 0:00:21]}  Qxa2 {[%clk 0:00:07]} 31. Ra1 {[%clk 0:00:20]}  Qc2 {[%clk 0:00:08]} 32. Rfc1 {[%clk 0:00:19]}  Qf5 {[%clk 0:00:07]} 33. Rxa4 {[%clk 0:00:18]}  Rb2 {[%clk 0:00:08]} 34. c5 {[%clk 0:00:15]}  h5 {[%clk 0:00:05]} 35. c6 {[%clk 0:00:15]}  h4 {[%clk 0:00:05]} 36. c7 {[%clk 0:00:15]}  Kh7 {[%clk 0:00:04]} 37. c8=Q {[%clk 0:00:14]}  Rb1 {[%clk 0:00:01]} 38. Nxf7 {[%clk 0:00:12]}  Rb5 {[%clk 0:00:01]} 39. Qh8+ {[%clk 0:00:11]}  Kg6 {[%clk 0:00:02]} 40. Ne5+ {[%clk 0:00:11]}  Rxe5 {[%clk 0:00:01]} 41. fxe5 {[%clk 0:00:11]} 1-0


[Site "https://www.chess.com"]

[Event "Titled Tuesday Blitz July 25 Late 2023"]
[White "Papayan, Oleg"]
[Black "Bueno, Alfeu Junior Varela"]
[WhiteFideId "4193911"]
[BlackFideId "2108879"]
[WhiteElo "2480"]
[BlackElo "2398"]
[Result "1-0"]
[Round "11"]
[TimeControl "180+2"]
[Date "2023.07.25"]
[WhiteClock "0:00:39"]
[BlackClock "0:00:02"]
[Board "63"]

1. e4 {[%clk 0:02:58]}  e6 {[%clk 0:03:00]} 2. d4 {[%clk 0:02:56]}  d5 {[%clk 0:03:01]} 3. Nc3 {[%clk 0:02:57]}  Nf6 {[%clk 0:03:01]} 4. Bg5 {[%clk 0:02:56]}  Be7 {[%clk 0:03:01]} 5. e5 {[%clk 0:02:56]}  Nfd7 {[%clk 0:03:01]} 6. Bxe7 {[%clk 0:02:56]}  Qxe7 {[%clk 0:03:01]} 7. f4 {[%clk 0:02:56]}  O-O {[%clk 0:03:01]} 8. Nf3 {[%clk 0:02:47]}  c5 {[%clk 0:03:00]} 9. Bd3 {[%clk 0:02:48]}  f6 {[%clk 0:03:00]} 10. O-O {[%clk 0:02:29]}  cxd4 {[%clk 0:02:57]} 11. Nb5 {[%clk 0:02:28]}  Nc6 {[%clk 0:02:55]} 12. Re1 {[%clk 0:02:14]}  fxe5 {[%clk 0:02:35]} 13. fxe5 {[%clk 0:02:10]}  a6 {[%clk 0:02:18]} 14. Nbxd4 {[%clk 0:02:08]}  Nc5 {[%clk 0:01:32]} 15. c3 {[%clk 0:01:54]}  Bd7 {[%clk 0:01:31]} 16. Bc2 {[%clk 0:01:46]}  Be8 {[%clk 0:01:28]} 17. h3 {[%clk 0:01:34]}  Rd8 {[%clk 0:00:59]} 18. Qd2 {[%clk 0:01:34]}  Bh5 {[%clk 0:00:48]} 19. g4 {[%clk 0:01:27]}  Ne4 {[%clk 0:00:25]} 20. Bxe4 {[%clk 0:01:10]}  dxe4 {[%clk 0:00:26]} 21. Rxe4 {[%clk 0:01:11]}  Rxf3 {[%clk 0:00:19]} 22. gxh5 {[%clk 0:00:54]}  Rxh3 {[%clk 0:00:15]} 23. Nxc6 {[%clk 0:00:49]}  bxc6 {[%clk 0:00:16]} 24. Qg2 {[%clk 0:00:45]}  Rxh5 {[%clk 0:00:15]} 25. Rf1 {[%clk 0:00:42]}  Rd5 {[%clk 0:00:14]} 26. Ref4 {[%clk 0:00:39]}  Rg5 {[%clk 0:00:02]} 27. Rf8+ {[%clk 0:00:39]} 1-0


[Site "https://www.chess.com"]

[Event "Titled Tuesday Blitz July 25 Late 2023"]
[White "ZugZwang1201"]
[Black "kripri"]
[WhiteElo "2470"]
[BlackElo "2370"]
[Result "0-1"]
[Round "11"]
[TimeControl "180+2"]
[Date "2023.07.25"]
[WhiteClock "0:00:05"]
[BlackClock "0:00:10"]
[Board "65"]

1. e4 {[%clk 0:03:00]}  c5 {[%clk 0:02:57]} 2. Nf3 {[%clk 0:03:01]}  e6 {[%clk 0:02:49]} 3. d4 {[%clk 0:03:01]}  cxd4 {[%clk 0:02:50]} 4. Nxd4 {[%clk 0:03:01]}  a6 {[%clk 0:02:49]} 5. Nc3 {[%clk 0:03:01]}  b5 {[%clk 0:02:47]} 6. f4 {[%clk 0:03:00]}  Bb7 {[%clk 0:02:48]} 7. Bd3 {[%clk 0:03:00]}  Nc6 {[%clk 0:02:48]} 8. Nb3 {[%clk 0:02:58]}  Qc7 {[%clk 0:02:44]} 9. Qe2 {[%clk 0:02:58]}  d6 {[%clk 0:02:42]} 10. g4 {[%clk 0:02:58]}  Nf6 {[%clk 0:02:32]} 11. g5 {[%clk 0:02:58]}  Nd7 {[%clk 0:02:32]} 12. Be3 {[%clk 0:02:58]}  Nc5 {[%clk 0:02:30]} 13. Nd2 {[%clk 0:02:50]}  Be7 {[%clk 0:02:28]} 14. Nf3 {[%clk 0:02:50]}  b4 {[%clk 0:02:21]} 15. Nd1 {[%clk 0:02:50]}  O-O-O {[%clk 0:02:12]} 16. Nf2 {[%clk 0:02:35]}  a5 {[%clk 0:02:01]} 17. h4 {[%clk 0:02:20]}  d5 {[%clk 0:02:01]} 18. e5 {[%clk 0:02:17]}  g6 {[%clk 0:01:52]} 19. Nd4 {[%clk 0:02:09]}  Nxd4 {[%clk 0:01:38]} 20. Bxd4 {[%clk 0:02:09]}  Ne4 {[%clk 0:01:30]} 21. Qe3 {[%clk 0:01:49]}  Qc6 {[%clk 0:01:17]} 22. O-O {[%clk 0:01:30]}  h6 {[%clk 0:01:09]} 23. Rfc1 {[%clk 0:01:30]}  hxg5 {[%clk 0:01:07]} 24. hxg5 {[%clk 0:01:30]}  Nxf2 {[%clk 0:00:37]} 25. Qxf2 {[%clk 0:01:26]}  Rh3 {[%clk 0:00:36]} 26. Bf1 {[%clk 0:01:21]}  Rh7 {[%clk 0:00:34]} 27. c3 {[%clk 0:01:18]}  Rdh8 {[%clk 0:00:28]} 28. Bg2 {[%clk 0:01:16]}  b3 {[%clk 0:00:22]} 29. axb3 {[%clk 0:01:13]}  Qb5 {[%clk 0:00:22]} 30. c4 {[%clk 0:01:06]}  dxc4 {[%clk 0:00:22]} 31. Rxc4+ {[%clk 0:00:57]}  Kb8 {[%clk 0:00:17]} 32. Ba7+ {[%clk 0:00:26]}  Ka8 {[%clk 0:00:17]} 33. Qb6 {[%clk 0:00:23]}  Rh1+ {[%clk 0:00:07]} 34. Bxh1 {[%clk 0:00:21]}  Rxh1+ {[%clk 0:00:08]} 35. Kf2 {[%clk 0:00:19]}  Qxb6+ {[%clk 0:00:09]} 36. Bxb6 {[%clk 0:00:17]}  Rxa1 {[%clk 0:00:10]} 37. Rc7 {[%clk 0:00:14]}  Bb4 {[%clk 0:00:09]} 38. f5 {[%clk 0:00:12]}  exf5 {[%clk 0:00:08]} 39. Rxf7 {[%clk 0:00:12]}  Rc1 {[%clk 0:00:08]} 40. e6 {[%clk 0:00:09]}  Rc2+ {[%clk 0:00:08]} 41. Ke3 {[%clk 0:00:08]}  Bc5+ {[%clk 0:00:06]} 42. Bxc5 {[%clk 0:00:07]}  Rxc5 {[%clk 0:00:07]} 43. e7 {[%clk 0:00:06]}  Re5+ {[%clk 0:00:08]} 44. Kd4 {[%clk 0:00:05]}  Re4+ {[%clk 0:00:08]} 45. Kc5 {[%clk 0:00:05]}  Re5+ {[%clk 0:00:08]} 46. Kd6 {[%clk 0:00:05]}  Rd5+ {[%clk 0:00:07]} 47. Ke6 {[%clk 0:00:05]}  Bc6 {[%clk 0:00:04]} 48. Rf8+ {[%clk 0:00:02]}  Kb7 {[%clk 0:00:04]} 49. e8=Q {[%clk 0:00:03]}  Bxe8 {[%clk 0:00:04]} 50. Kxd5 {[%clk 0:00:04]}  Bc6+ {[%clk 0:00:04]} 51. Kc5 {[%clk 0:00:04]}  Be4 {[%clk 0:00:05]} 52. Rf7+ {[%clk 0:00:04]}  Kc8 {[%clk 0:00:05]} 53. Kb6 {[%clk 0:00:04]}  Bc2 {[%clk 0:00:05]} 54. Kxa5 {[%clk 0:00:04]}  Bxb3 {[%clk 0:00:05]} 55. Kb4 {[%clk 0:00:04]}  Bxf7 {[%clk 0:00:05]} 56. Kc5 {[%clk 0:00:04]}  Kd7 {[%clk 0:00:06]} 57. Kd4 {[%clk 0:00:04]}  Be6 {[%clk 0:00:06]} 58. Ke5 {[%clk 0:00:05]}  Ke7 {[%clk 0:00:07]} 59. b4 {[%clk 0:00:05]}  Bc8 {[%clk 0:00:07]} 60. b5 {[%clk 0:00:05]}  Bb7 {[%clk 0:00:08]} 61. b6 {[%clk 0:00:06]}  Bc6 {[%clk 0:00:08]} 62. Kf4 {[%clk 0:00:05]}  Kd6 {[%clk 0:00:09]} 63. Ke3 {[%clk 0:00:06]}  Bb7 {[%clk 0:00:09]} 64. Kd4 {[%clk 0:00:06]}  Bc6 {[%clk 0:00:10]} 65. Ke3 {[%clk 0:00:05]}  Ke5 {[%clk 0:00:10]} 0-1


[Site "https://www.chess.com"]

[Event "Titled Tuesday Blitz July 25 Late 2023"]
[White "Vega Gutierrez, Sabrina"]
[Black "Winkels, Marcel"]
[WhiteFideId "2219026"]
[BlackFideId "1003887"]
[WhiteElo "2431"]
[BlackElo "2101"]
[Result "1-0"]
[Round "11"]
[TimeControl "180+2"]
[Date "2023.07.25"]
[WhiteClock "0:02:02"]
[BlackClock "0:01:08"]
[Board "70"]

1. e4 {[%clk 0:03:00]}  c5 {[%clk 0:02:59]} 2. Nf3 {[%clk 0:03:00]}  e6 {[%clk 0:03:00]} 3. d4 {[%clk 0:03:00]}  cxd4 {[%clk 0:02:59]} 4. Nxd4 {[%clk 0:03:01]}  Nc6 {[%clk 0:02:59]} 5. Nc3 {[%clk 0:03:01]}  Qc7 {[%clk 0:02:59]} 6. Be3 {[%clk 0:02:55]}  a6 {[%clk 0:02:58]} 7. f4 {[%clk 0:02:55]}  d6 {[%clk 0:02:52]} 8. Qf3 {[%clk 0:02:53]}  Nf6 {[%clk 0:02:51]} 9. O-O-O {[%clk 0:02:51]}  Be7 {[%clk 0:02:48]} 10. g4 {[%clk 0:02:51]}  Nxd4 {[%clk 0:02:44]} 11. Bxd4 {[%clk 0:02:51]}  e5 {[%clk 0:02:44]} 12. fxe5 {[%clk 0:02:51]}  dxe5 {[%clk 0:02:42]} 13. Qg3 {[%clk 0:02:51]}  Nd7 {[%clk 0:02:31]} 14. Nd5 {[%clk 0:02:44]}  Qd8 {[%clk 0:02:30]} 15. Bxe5 {[%clk 0:02:34]}  Nxe5 {[%clk 0:02:17]} 16. Qxe5 {[%clk 0:02:31]}  Be6 {[%clk 0:02:04]} 17. Nc7+ {[%clk 0:02:27]}  Kf8 {[%clk 0:02:02]} 18. Rxd8+ {[%clk 0:02:26]}  Rxd8 {[%clk 0:01:56]} 19. Nxe6+ {[%clk 0:02:26]}  fxe6 {[%clk 0:01:53]} 20. Bc4 {[%clk 0:02:27]}  Rd6 {[%clk 0:01:22]} 21. Rf1+ {[%clk 0:02:25]}  Ke8 {[%clk 0:01:22]} 22. Qxg7 {[%clk 0:02:24]}  Rf8 {[%clk 0:01:15]} 23. Rxf8+ {[%clk 0:02:12]}  Bxf8 {[%clk 0:01:14]} 24. Qxh7 {[%clk 0:02:09]}  e5 {[%clk 0:01:13]} 25. Qf7+ {[%clk 0:02:05]}  Kd8 {[%clk 0:01:12]} 26. Qxf8+ {[%clk 0:02:05]}  Kc7 {[%clk 0:01:13]} 27. Bd5 {[%clk 0:02:04]}  Rxd5 {[%clk 0:01:12]} 28. exd5 {[%clk 0:02:04]}  e4 {[%clk 0:01:12]} 29. Qe7+ {[%clk 0:02:03]}  Kb6 {[%clk 0:01:12]} 30. Qxe4 {[%clk 0:02:02]}  Ka7 {[%clk 0:01:12]} 31. Qd4+ {[%clk 0:02:02]}  Ka8 {[%clk 0:01:08]} 32. d6 {[%clk 0:02:02]} 1-0


[Site "https://www.chess.com"]

[Event "Titled Tuesday Blitz July 25 Late 2023"]
[White "Fonseca Manrique, Enrique"]
[Black "DampFalcon"]
[WhiteFideId "5114330"]
[WhiteElo "2535"]
[BlackElo "2388"]
[Result "1-0"]
[Round "11"]
[TimeControl "180+2"]
[Date "2023.07.25"]
[WhiteClock "0:01:16"]
[BlackClock "0:00:17"]
[Board "72"]

1. e4 {[%clk 0:02:52]}  c5 {[%clk 0:02:58]} 2. Nf3 {[%clk 0:02:52]}  g6 {[%clk 0:02:56]} 3. d4 {[%clk 0:02:51]}  cxd4 {[%clk 0:02:57]} 4. c3 {[%clk 0:02:52]}  dxc3 {[%clk 0:02:57]} 5. Nxc3 {[%clk 0:02:53]}  Nc6 {[%clk 0:02:56]} 6. h4 {[%clk 0:02:53]}  Bg7 {[%clk 0:02:55]} 7. h5 {[%clk 0:02:53]}  d6 {[%clk 0:02:48]} 8. Bc4 {[%clk 0:02:43]}  Bg4 {[%clk 0:02:36]} 9. Bxf7+ {[%clk 0:02:41]}  Kxf7 {[%clk 0:02:35]} 10. Ng5+ {[%clk 0:02:41]}  Ke8 {[%clk 0:02:28]} 11. Qxg4 {[%clk 0:02:41]}  Ne5 {[%clk 0:02:27]} 12. Qe2 {[%clk 0:02:40]}  Qd7 {[%clk 0:02:18]} 13. Be3 {[%clk 0:02:27]}  Nf6 {[%clk 0:01:57]} 14. h6 {[%clk 0:02:18]}  Bf8 {[%clk 0:01:57]} 15. O-O-O {[%clk 0:02:15]}  Neg4 {[%clk 0:01:47]} 16. f3 {[%clk 0:02:01]}  Ne5 {[%clk 0:01:19]} 17. Kb1 {[%clk 0:01:59]}  Qc6 {[%clk 0:01:14]} 18. Rc1 {[%clk 0:01:57]}  Qa6 {[%clk 0:01:09]} 19. Nb5 {[%clk 0:01:49]}  Kd8 {[%clk 0:00:30]} 20. Bd4 {[%clk 0:01:26]}  Nc6 {[%clk 0:00:20]} 21. Bxf6 {[%clk 0:01:23]}  exf6 {[%clk 0:00:21]} 22. Nf7+ {[%clk 0:01:23]}  Ke7 {[%clk 0:00:22]} 23. Nxh8 {[%clk 0:01:23]}  Nb4 {[%clk 0:00:20]} 24. a3 {[%clk 0:01:22]}  Nc6 {[%clk 0:00:18]} 25. Qc4 {[%clk 0:01:20]}  Ne5 {[%clk 0:00:16]} 26. Qc7+ {[%clk 0:01:19]}  Ke6 {[%clk 0:00:17]} 27. Nd4# {[%clk 0:01:16]} 1-0


[Site "https://www.chess.com"]